bitfinex/quotes_BTCUSD_20250928
["timestamp","ask_amount","ask_price","bid_price","bid_amount"]
[1759070987529,8.35016191,110050.0,110040.0,0.41016]
[1759070987842,8.35016191,110050.0,110040.0,0.12508]
[1759070988045,8.35016191,110050.0,110040.0,0.41016]
[1759070988473,8.35016191,110050.0,110040.0,0.12508]
[1759070988700,8.35016191,110050.0,110040.0,0.41016]
[1759070990872,8.36442104,110050.0,110040.0,0.41016]
[1759070991067,8.36442104,110050.0,110040.0,0.12508]
[1759070991305,8.36442104,110050.0,110040.0,0.3094]
[1759070991892,8.36442104,110050.0,110040.0,0.12508]
[1759070992092,8.36442104,110050.0,110040.0,0.41016]
[1759070993714,8.36442104,110050.0,110040.0,0.45461676]
[1759070993857,8.36442104,110050.0,110040.0,0.45783676]
[1759070996224,8.02442104,110050.0,110040.0,0.45783676]
[1759070996967,8.02442104,110050.0,110040.0,0.45248676]
[1759070997404,8.02442104,110050.0,110040.0,0.45461676]
[1759070997818,8.02442104,110050.0,110040.0,0.45783676]
[1759070999029,8.01016191,110050.0,110040.0,0.45783676]
[1759070999242,0.01016191,110050.0,110040.0,0.58270866]
[1759070999456,0.01016191,110050.0,110040.0,0.610051]
[1759071000257,0.01016191,110050.0,110040.0,0.514291]
[1759071000512,0.01016191,110050.0,110040.0,0.609011]
[1759071000687,0.01016191,110050.0,110040.0,0.612011]
[1759071000896,0.01016191,110050.0,110040.0,0.707941]
[1759071001300,0.01016191,110050.0,110040.0,0.704941]
[1759071001671,0.01016191,110050.0,110040.0,0.713941]
[1759071001875,0.01016191,110050.0,110040.0,0.712941]
[1759071002093,0.02441928,110050.0,110040.0,0.712941]
[1759071002696,0.02441928,110050.0,110040.0,0.617011]
[1759071004291,0.02441928,110050.0,110040.0,0.623011]
[1759071005558,0.02441928,110050.0,110040.0,0.622971]
[1759071011198,0.3402,110080.0,110070.0,0.1]
[1759071011399,8.34032645,110080.0,110070.0,0.38496]
[1759071011576,8.34032645,110080.0,110070.0,0.40954]
[1759071011782,8.34032645,110080.0,110070.0,0.12458]
[1759071011996,8.35458147,110080.0,110070.0,0.42771025]
[1759071012204,8.35458147,110080.0,110070.0,0.40954]
[1759071013129,8.35458147,110080.0,110070.0,0.45286676]
[1759071014449,8.01438147,110080.0,110070.0,0.16790676]
[1759071014658,8.01438147,110080.0,110070.0,0.47103701]
[1759071014899,8.01438147,110080.0,110070.0,0.45286676]
[1759071015100,8.02387939,110080.0,110070.0,0.45286676]
[1759071015313,8.02387939,110080.0,110070.0,0.16790676]
[1759071015486,8.02387939,110080.0,110070.0,0.45286676]
[1759071018264,8.36387939,110080.0,110070.0,0.45286676]
[1759071018526,8.34962437,110080.0,110070.0,0.45286676]
[1759071020710,8.34962437,110080.0,110070.0,0.48020661]
[1759071021556,8.34962437,110080.0,110070.0,0.48232661]
[1759071021814,8.36387926,110080.0,110070.0,0.19736661]
[1759071022025,8.36387926,110080.0,110070.0,0.48228661]
[1759071022989,8.36387926,110080.0,110070.0,0.19736661]
[1759071023192,8.36387926,110080.0,110070.0,0.48228661]
[1759071023431,8.36387926,110080.0,110070.0,0.19736661]
[1759071023587,8.36387926,110080.0,110070.0,0.39572661]
[1759071023787,8.36387926,110080.0,110070.0,0.19736661]
[1759071023991,8.36387926,110080.0,110070.0,0.48016661]
[1759071024398,8.36387926,110080.0,110070.0,0.38016661]
[1759071024573,8.36387926,110080.0,110070.0,0.48016661]
[1759071026222,8.36387926,110080.0,110070.0,0.19524661]
[1759071026462,8.36387926,110080.0,110070.0,0.48016661]
[1759071027016,8.36387926,110080.0,110070.0,0.48012661]
[1759071027437,8.36387926,110080.0,110070.0,0.09524661]
[1759071027637,8.36387926,110080.0,110070.0,0.48012661]
[1759071028320,8.34962437,110080.0,110070.0,0.09524661]
[1759071028677,8.34962437,110080.0,110070.0,0.45278676]
[1759071030344,8.53131041,110080.0,110070.0,0.06790676]
[1759071030561,8.34962437,110080.0,110070.0,0.06790676]
[1759071030759,8.12954248,110080.0,110070.0,0.16790676]
[1759071031082,8.1437978,110080.0,110070.0,0.16790676]
[1759071031299,8.4286778,110080.0,110070.0,0.16790676]
[1759071034126,8.1437978,110080.0,110070.0,0.16790676]
[1759071034479,8.4286778,110080.0,110070.0,0.16790676]
[1759071035041,8.1437978,110080.0,110070.0,0.16790676]
[1759071035247,8.61036384,110080.0,110070.0,0.16790676]
[1759071038218,8.61036384,110080.0,110070.0,0.06790676]
[1759071038424,8.61036384,110080.0,110070.0,0.16790676]
[1759071039799,8.1437978,110080.0,110070.0,0.16790676]
[1759071040005,8.4286778,110080.0,110070.0,0.16790676]
[1759071040241,8.1437978,110080.0,110070.0,0.19113701]
[1759071040470,8.1437978,110080.0,110070.0,0.17296676]
[1759071040686,8.12954248,110080.0,110070.0,0.17296676]
[1759071041588,8.12954248,110080.0,110070.0,0.20030661]
[1759071043261,8.14379756,110080.0,110070.0,0.20030661]
[1759071044162,7.96318259,110080.0,110070.0,0.20030661]
[1759071047755,7.94892751,110080.0,110070.0,0.20030661]
[1759071050873,7.96318243,110080.0,110070.0,0.20030661]
[1759071052492,7.96318243,110080.0,110070.0,0.48514661]
[1759071053151,7.96318243,110080.0,110070.0,0.20030661]
[1759071053361,7.96318243,110080.0,110070.0,0.48514661]
[1759071059768,7.94892751,110080.0,110070.0,0.48514661]
[1759071060838,7.60892751,110080.0,110070.0,0.48514661]
[1759071060980,7.94892751,110080.0,110070.0,0.48514661]
[1759071062226,0.00962437,110080.0,110070.0,0.51529851]
[1759071062431,0.02387763,110080.0,110070.0,0.51529851]
[1759071062646,0.02387763,110080.0,110070.0,0.23045851]
[1759071064044,0.02387763,110080.0,110070.0,0.99177851]
[1759071064239,0.02387763,110080.0,110070.0,0.23345851]
[1759071064379,0.02387763,110080.0,110070.0,0.99177851]
[1759071064581,0.02387763,110080.0,110070.0,0.98877851]
[1759071064807,0.02387763,110080.0,110070.0,0.23045851]
[1759071065012,0.02387763,110080.0,110070.0,0.99777851]
[1759071065213,0.02387763,110080.0,110070.0,0.23945851]
[1759071065636,0.02387763,110080.0,110070.0,0.99673851]
[1759071066710,0.02387763,110080.0,110070.0,1.00273851]
[1759071067452,0.02387763,110080.0,110070.0,1.18444106]
[1759071067827,0.02387763,110080.0,110070.0,1.00273851]
[1759071068035,0.02387763,110080.0,110070.0,1.18444106]
[1759071069684,0.02387763,110080.0,110070.0,0.24445851]
[1759071069824,0.02387763,110080.0,110070.0,0.30898661]
[1759071069998,0.02387763,110080.0,110070.0,0.21430661]
[1759071070271,0.02387763,110080.0,110070.0,0.49374661]
[1759071070429,0.02387763,110080.0,110070.0,0.59374661]
[1759071071684,0.00962437,110080.0,110070.0,0.59374661]
[1759071072321,0.00962437,110080.0,110070.0,0.77544916]
[1759071075354,0.00962437,110080.0,110070.0,0.21430661]
[1759071075583,8.00962437,110080.0,110070.0,0.10924661]
[1759071075765,8.00962437,110080.0,110070.0,0.49081661]
[1759071075998,8.00962437,110080.0,110070.0,0.59374661]
[1759071076178,0.00962437,110080.0,110070.0,0.59374661]
[1759071076394,0.50962437,110080.0,110070.0,0.59374661]
[1759071076601,8.0,110080.0,110070.0,0.59374661]
[1759071077016,8.0,110080.0,110070.0,0.58474661]
[1759071077229,8.0,110080.0,110070.0,0.57874661]
[1759071077429,8.03194526,110080.0,110070.0,0.58274661]
[1759071077633,0.03194526,110080.0,110070.0,0.58274661]
[1759071077885,0.53194526,110080.0,110070.0,0.58874661]
[1759071078096,8.5,110080.0,110070.0,0.58874661]
[1759071078306,8.0,110080.0,110070.0,0.58874661]
[1759071079721,8.0,110080.0,110070.0,0.61889851]
[1759071080236,8.03225248,110080.0,110070.0,0.61889851]
[1759071080434,0.03225248,110080.0,110070.0,0.61889851]
[1759071080641,0.53225248,110080.0,110070.0,0.61889851]
[1759071080799,8.5,110080.0,110070.0,0.61889851]
[1759071080976,8.0,110080.0,110070.0,0.61889851]
[1759071081184,0.04023056,110090.0,110080.0,0.14232676]
[1759071081395,0.04023056,110090.0,110080.0,0.14545676]
[1759071081597,0.04023056,110090.0,110080.0,0.17127676]
[1759071081823,0.04023056,110090.0,110080.0,0.52861817]
[1759071082026,0.04023056,110090.0,110080.0,0.51044957]
[1759071082661,0.04023056,110090.0,110080.0,0.51244957]
[1759071084240,0.04023056,110090.0,110080.0,0.51344957]
[1759071084768,0.04023056,110090.0,110080.0,0.51044957]
[1759071085288,0.04023056,110090.0,110080.0,0.51444957]
[1759071085501,0.04023056,110090.0,110080.0,0.51844957]
[1759071088192,0.04023056,110090.0,110080.0,1.27680957]
[1759071089256,0.04023056,110090.0,110080.0,0.51844957]
[1759071089449,0.04023056,110090.0,110080.0,1.27680957]
[1759071090067,0.04023056,110090.0,110080.0,1.37273957]
[1759071090247,0.04023056,110090.0,110080.0,0.61437957]
[1759071090387,0.04023056,110090.0,110080.0,1.37277957]
[1759071090824,0.04023056,110090.0,110080.0,0.43269353]
[1759071091028,0.04023056,110090.0,110080.0,1.37273957]
[1759071091274,0.04023056,110090.0,110080.0,0.43269353]
[1759071091447,0.04023056,110090.0,110080.0,1.37265957]
[1759071098564,0.04023056,110090.0,110080.0,1.36865957]
[1759071098932,0.04023056,110090.0,110080.0,1.38065957]
[1759071099141,0.04023056,110090.0,110080.0,1.37665957]
[1759071099963,0.04023056,110090.0,110080.0,1.28072957]
[1759071101951,0.04023056,110090.0,110080.0,1.28872957]
[1759071102723,0.04023056,110090.0,110080.0,1.62872957]
[1759071103132,0.04023056,110090.0,110080.0,1.67872957]
[1759071103341,0.03698056,110090.0,110080.0,1.67872957]
[1759071104390,0.03698056,110090.0,110080.0,1.66672957]
[1759071104813,0.03698056,110090.0,110080.0,1.68172957]
[1759071105368,0.00489107,110090.0,110080.0,1.30708827]
[1759071105566,0.0002,110100.0,110090.0,0.8441482]
[1759071105794,0.0002,110100.0,110090.0,0.8472782]
[1759071105977,0.0002,110100.0,110090.0,0.8730982]
[1759071106402,0.0002,110100.0,110090.0,0.90041465]
[1759071107678,1e-08,110100.0,110090.0,1.09673012]
[1759071108084,1e-08,110100.0,110090.0,1.76269012]
[1759071108289,1e-08,110100.0,110090.0,2.23593012]
[1759071108489,1e-08,110100.0,110090.0,2.24793012]
[1759071109489,1e-08,110100.0,110090.0,2.23593012]
[1759071109734,0.5,110120.0,110110.0,0.4739633]
[1759071109935,0.50013907,110120.0,110110.0,0.7914752]
[1759071110098,0.50013907,110120.0,110110.0,0.5330652]
[1759071110322,0.50013907,110120.0,110110.0,1.6721452]
[1759071110538,0.50013907,110120.0,110110.0,0.56038073]
[1759071110739,0.50013907,110120.0,110110.0,1.69946073]
[1759071111270,0.50013907,110120.0,110110.0,1.64946073]
[1759071111465,0.50013907,110120.0,110110.0,1.69946073]
[1759071111982,0.50013907,110120.0,110110.0,1.70846073]
[1759071114222,0.50211907,110120.0,110110.0,1.57065073]
[1759071114425,0.50211907,110120.0,110110.0,2.00581073]
[1759071114849,0.50211907,110120.0,110110.0,2.00899073]
[1759071115044,0.50013907,110120.0,110110.0,1.85899073]
[1759071115409,0.50489907,110120.0,110110.0,1.37601073]
[1759071115596,0.50489907,110120.0,110110.0,1.63389883]
[1759071115808,0.50489907,110120.0,110110.0,0.81229073]
[1759071116205,0.50489907,110120.0,110110.0,0.34409883]
[1759071116417,0.50489907,110120.0,110110.0,1.10529883]
[1759071116630,0.50489907,110120.0,110110.0,0.63566229]
[1759071116839,0.50489907,110120.0,110110.0,1.25533883]
[1759071117269,0.50489907,110120.0,110110.0,1.16089883]
[1759071117492,0.50212907,110120.0,110110.0,1.25553883]
[1759071117706,0.50212907,110120.0,110110.0,1.28569073]
[1759071117922,0.50212907,110120.0,110110.0,1.27669073]
[1759071118135,0.50212907,110120.0,110110.0,1.28269073]
[1759071118573,0.25212907,110120.0,110110.0,1.28269073]
[1759071118796,0.07206882,110120.0,110110.0,1.28468073]
[1759071119010,0.07206882,110120.0,110110.0,1.28786073]
[1759071119449,0.07404882,110120.0,110110.0,1.28269073]
[1759071119718,0.07682882,110120.0,110110.0,1.28325073]
[1759071120573,0.07682882,110120.0,110110.0,0.20946229]
[1759071120789,0.07682882,110120.0,110110.0,0.58266229]
[1759071121048,0.07682882,110120.0,110110.0,0.93426676]
[1759071121487,0.07682882,110120.0,110110.0,0.93626676]
[1759071121921,0.07682882,110120.0,110110.0,0.93126676]
[1759071122381,0.07682882,110120.0,110110.0,0.93426676]
[1759071122816,0.07682882,110120.0,110110.0,0.93726676]
[1759071123426,0.07682882,110120.0,110110.0,0.07514676]
[1759071123677,0.07682882,110120.0,110110.0,0.45862676]
[1759071123887,0.07682882,110120.0,110110.0,0.50862676]
[1759071124100,0.07682882,110120.0,110110.0,0.55862676]
[1759071124310,0.07682882,110120.0,110110.0,0.55562676]
[1759071124524,0.07682882,110120.0,110110.0,0.45562676]
[1759071124731,0.07682882,110120.0,110110.0,0.55562676]
[1759071124988,0.07682882,110120.0,110110.0,0.54962676]
[1759071125195,0.07682882,110120.0,110110.0,0.44962676]
[1759071125818,0.07782882,110120.0,110110.0,0.44962676]
[1759071126039,0.07782882,110120.0,110110.0,0.45362676]
[1759071126524,0.07782882,110120.0,110110.0,0.44962676]
[1759071126728,0.07782882,110120.0,110110.0,0.54962676]
[1759071126946,0.07782882,110120.0,110110.0,0.55162676]
[1759071127376,0.07782882,110120.0,110110.0,0.45162676]
[1759071127598,0.07782882,110120.0,110110.0,0.55162676]
[1759071128032,0.07782882,110120.0,110110.0,0.45162676]
[1759071128920,0.07782882,110120.0,110110.0,0.55162676]
[1759071130996,0.09207683,110120.0,110110.0,0.55162676]
[1759071131453,0.09207683,110120.0,110110.0,0.45162676]
[1759071131688,0.09207683,110120.0,110110.0,0.55162676]
[1759071132880,0.09207683,110120.0,110110.0,0.16814676]
[1759071132881,8.43207683,110120.0,110110.0,0.16814676]
[1759071133116,8.43207683,110120.0,110110.0,0.06814676]
[1759071133117,8.61369688,110120.0,110110.0,0.06814676]
[1759071133336,8.64103107,110120.0,110110.0,0.13542676]
[1759071133570,8.64103107,110120.0,110110.0,0.12582]
[1759071133571,8.93027107,110120.0,110110.0,0.12582]
[1759071133768,8.64103107,110120.0,110110.0,0.02582]
[1759071134002,8.74869102,110120.0,110110.0,0.12582]
[1759071134196,8.45941102,110120.0,110110.0,0.12582]
[1759071134428,8.45841102,110120.0,110110.0,0.16614676]
[1759071134848,8.45941102,110120.0,110110.0,0.16614676]
[1759071135056,8.46141102,110120.0,110110.0,0.16614676]
[1759071135271,8.46041102,110120.0,110110.0,0.16614676]
[1759071135704,8.46141102,110120.0,110110.0,0.16614676]
[1759071136805,8.75537102,110120.0,110110.0,0.16614676]
[1759071137766,8.74128301,110120.0,110110.0,0.16614676]
[1759071138331,8.44716301,110120.0,110110.0,0.16614676]
[1759071138532,8.74116301,110120.0,110110.0,0.16614676]
[1759071139351,8.44716301,110120.0,110110.0,0.16614676]
[1759071139560,8.74124301,110120.0,110110.0,0.16614676]
[1759071140642,8.71104882,110120.0,110110.0,0.16614676]
[1759071140863,8.71382882,110120.0,110110.0,0.16614676]
[1759071141049,8.72807922,110120.0,110110.0,0.16614676]
[1759071141615,8.43407922,110120.0,110110.0,0.16614676]
[1759071141819,8.72811922,110120.0,110110.0,0.16614676]
[1759071142075,8.43407922,110120.0,110110.0,0.16614676]
[1759071142220,8.72807922,110120.0,110110.0,0.16614676]
[1759071142409,8.43407922,110120.0,110110.0,0.16614676]
[1759071142821,8.72803922,110120.0,110110.0,0.16614676]
[1759071143020,8.52165356,110120.0,110110.0,0.16614676]
[1759071144775,8.52145356,110120.0,110110.0,0.16614676]
[1759071146014,8.22491356,110120.0,110110.0,0.16614676]
[1759071146218,8.0185404,110120.0,110110.0,0.16814676]
[1759071146420,8.0172504,110120.0,110110.0,0.17118676]
[1759071147175,8.0185404,110120.0,110110.0,0.16814676]
[1759071147847,8.0175404,110120.0,110110.0,0.16814676]
[1759071148071,8.0195404,110120.0,110110.0,0.16814676]
[1759071148291,8.0182504,110120.0,110110.0,0.46518676]
[1759071148506,8.00329,110120.0,110110.0,0.46214676]
[1759071148691,8.00329,110120.0,110110.0,0.16814676]
[1759071149129,8.00329,110120.0,110110.0,0.42286676]
[1759071150191,8.00329,110120.0,110110.0,0.16614676]
[1759071151882,8.0175394,110120.0,110110.0,0.16614676]
[1759071153859,8.0162494,110120.0,110110.0,0.17118676]
[1759071154234,8.0162494,110120.0,110110.0,0.18935041]
[1759071155862,8.0162494,110120.0,110110.0,0.17118676]
[1759071157435,8.0142494,110120.0,110110.0,0.56130676]
[1759071157824,8.75762942,110120.0,110110.0,0.56130676]
[1759071158049,8.75762942,110120.0,110110.0,0.56230676]
[1759071158820,8.75762942,110120.0,110110.0,0.17418676]
[1759071159031,8.75762942,110120.0,110110.0,0.46762676]
[1759071160143,8.0,110120.0,110110.0,0.46762676]
[1759071160373,8.75762942,110120.0,110110.0,0.46762676]
[1759071160997,8.77187767,110120.0,110110.0,0.46762676]
[1759071162581,8.77187767,110120.0,110110.0,0.17418676]
[1759071162943,8.5659941,110120.0,110110.0,0.46722676]
[1759071163321,8.77187767,110120.0,110110.0,0.46722676]
[1759071163729,8.77187767,110120.0,110110.0,0.17418676]
[1759071163940,8.77316767,110120.0,110110.0,0.46210676]
[1759071164167,8.01553825,110120.0,110110.0,0.46210676]
[1759071164393,8.77316767,110120.0,110110.0,0.46210676]
[1759071164567,8.77397767,110120.0,110110.0,0.16914676]
[1759071164782,8.77316767,110120.0,110110.0,0.46206676]
[1759071165640,9.15279238,110120.0,110110.0,0.06914676]
[1759071165835,9.15279238,110120.0,110110.0,0.16914676]
[1759071166259,9.15279238,110120.0,110110.0,0.06914676]
[1759071166465,9.15279238,110120.0,110110.0,0.16914676]
[1759071166927,9.44607238,110120.0,110110.0,0.16914676]
[1759071167374,9.44607238,110120.0,110110.0,0.06914676]
[1759071167585,9.44607238,110120.0,110110.0,0.16814676]
[1759071167775,9.43182413,110120.0,110110.0,0.16814676]
[1759071167984,9.13854413,110120.0,110110.0,0.16814676]
[1759071168214,9.43178413,110120.0,110110.0,0.16614676]
[1759071168445,9.14054413,110120.0,110110.0,0.16614676]
[1759071168624,9.43382413,110120.0,110110.0,0.16614676]
[1759071168860,9.43182413,110120.0,110110.0,0.16614676]
[1759071169001,9.43178413,110120.0,110110.0,0.16614676]
[1759071169202,9.43678413,110120.0,110110.0,0.16614676]
[1759071169616,9.4510336,110120.0,110110.0,0.16614676]
[1759071170059,9.4530336,110120.0,110110.0,0.16614676]
[1759071172040,9.63465365,110120.0,110110.0,0.16614676]
[1759071172769,9.4530336,110120.0,110110.0,0.16614676]
[1759071172987,9.4530336,110120.0,110110.0,0.06614676]
[1759071173186,9.4530336,110120.0,110110.0,0.16614676]
[1759071174340,9.4530336,110120.0,110110.0,0.06614676]
[1759071174341,11.11109778,110120.0,110110.0,0.06614676]
[1759071174545,11.11109778,110120.0,110110.0,0.16614676]
[1759071175404,11.11109778,110120.0,110110.0,0.06614676]
[1759071175776,11.11109778,110120.0,110110.0,0.02382]
[1759071177295,11.09684831,110120.0,110110.0,0.02382]
[1759071178136,11.10672125,110120.0,110110.0,0.02382]
[1759071179177,10.81348125,110120.0,110110.0,0.02382]
[1759071179474,11.10620125,110120.0,110110.0,0.12382]
[1759071179724,11.10620125,110120.0,110110.0,0.02382]
[1759071180555,11.12045235,110120.0,110110.0,0.02382]
[1759071180999,10.82773235,110120.0,110110.0,0.02382]
[1759071181201,11.12033235,110120.0,110110.0,0.02382]
[1759071181607,11.12029235,110120.0,110110.0,0.12382]
[1759071181812,10.82773235,110120.0,110110.0,0.12382]
[1759071182018,11.11049941,110120.0,110110.0,0.12382]
[1759071183288,10.89115422,110120.0,110110.0,0.12382]
[1759071183506,9.27964004,110120.0,110110.0,0.06823676]
[1759071183725,9.27835004,110120.0,110110.0,0.17121676]
[1759071183914,9.57083004,110120.0,110110.0,0.17121676]
[1759071184064,9.27835004,110120.0,110110.0,0.17121676]
[1759071184281,9.57083004,110120.0,110110.0,0.17121676]
[1759071184740,8.93835004,110120.0,110110.0,0.17121676]
[1759071184944,8.55953533,110120.0,110110.0,0.17121676]
[1759071186007,8.55753533,110120.0,110110.0,0.17121676]
[1759071186453,8.93635004,110120.0,110110.0,0.17121676]
[1759071186668,8.93135004,110120.0,110110.0,0.17121676]
[1759071187091,8.93235004,110120.0,110110.0,0.17121676]
[1759071187730,8.91809894,110120.0,110110.0,0.17121676]
[1759071191098,8.93234854,110120.0,110110.0,0.17121676]
[1759071191923,8.93234854,110120.0,110110.0,0.07121676]
[1759071192081,8.93234854,110120.0,110110.0,0.17121676]
[1759071192082,8.91809894,110120.0,110110.0,0.17121676]
[1759071194759,8.54057423,110120.0,110110.0,0.16823676]
[1759071194997,8.54057423,110120.0,110110.0,0.16614676]
[1759071195184,8.55482375,110120.0,110110.0,0.16614676]
[1759071195404,8.93363846,110120.0,110110.0,0.06614676]
[1759071195615,8.93363846,110120.0,110110.0,0.16614676]
[1759071195837,9.22575846,110120.0,110110.0,0.16614676]
[1759071196055,9.22656846,110120.0,110110.0,0.16614676]
[1759071196271,9.22656846,110120.0,110110.0,0.06614676]
[1759071196485,9.22656846,110120.0,110110.0,0.16614676]
[1759071197113,9.22575846,110120.0,110110.0,0.16614676]
[1759071197344,9.22575846,110120.0,110110.0,0.06614676]
[1759071197690,9.55231894,110120.0,110110.0,0.16614676]
[1759071198421,9.55231894,110120.0,110110.0,0.06614676]
[1759071198659,9.55231894,110120.0,110110.0,0.16614676]
[1759071201205,9.2744494,110120.0,110110.0,0.16614676]
[1759071201355,9.5662494,110120.0,110110.0,0.16614676]
[1759071202396,9.55199894,110120.0,110110.0,0.16614676]
[1759071202609,9.25938894,110120.0,110110.0,0.16614676]
[1759071202808,9.55110894,110120.0,110110.0,0.16614676]
[1759071203911,9.55098894,110120.0,110110.0,0.16830676]
[1759071204151,9.55098894,110120.0,110110.0,0.17149676]
[1759071204514,9.55086894,110120.0,110110.0,0.17149676]
[1759071204723,8.87928423,110120.0,110110.0,0.17149676]
[1759071204930,9.17072423,110120.0,110110.0,0.17149676]
[1759071205337,9.18497453,110120.0,110110.0,0.17149676]
[1759071206377,8.89353453,110120.0,110110.0,0.17149676]
[1759071206657,9.18501453,110120.0,110110.0,0.17149676]
[1759071207683,9.17076423,110120.0,110110.0,0.17149676]
[1759071207887,9.55086894,110120.0,110110.0,0.16614676]
[1759071208170,9.64039041,110120.0,110110.0,0.16614676]
[1759071208378,9.55167894,110120.0,110110.0,0.16614676]
[1759071210293,9.26019894,110120.0,110110.0,0.16614676]
[1759071210502,9.54913894,110120.0,110110.0,0.16830676]
[1759071210819,9.56467968,110120.0,110110.0,0.16830676]
[1759071211001,9.56467968,110120.0,110110.0,0.16614676]
[1759071211571,9.35403909,110120.0,110110.0,0.16614676]
[1759071212367,9.33978835,110120.0,110110.0,0.16614676]
[1759071214453,8.58235162,110120.0,110110.0,0.16614676]
[1759071215347,8.39481808,110120.0,110110.0,0.16614676]
[1759071215751,8.39562808,110120.0,110110.0,0.16614676]
[1759071218510,8.95625553,110120.0,110110.0,0.06614676]
[1759071218728,9.044967,110120.0,110110.0,0.06614676]
[1759071218923,9.044967,110120.0,110110.0,0.16614676]
[1759071219134,9.044967,110120.0,110110.0,0.06614676]
[1759071219347,9.044967,110120.0,110110.0,0.16614676]
[1759071219774,9.044967,110120.0,110110.0,0.06614676]
[1759071220002,9.044967,110120.0,110110.0,0.16614676]
[1759071220707,8.95625553,110120.0,110110.0,0.16614676]
[1759071221413,8.9705061,110120.0,110110.0,0.16614676]
[1759071222055,8.6794661,110120.0,110110.0,0.16614676]
[1759071222270,8.9698261,110120.0,110110.0,0.16614676]
[1759071222465,8.49703605,110120.0,110110.0,0.16614676]
[1759071222729,8.40697865,110120.0,110110.0,0.17149676]
[1759071222935,8.39272808,110120.0,110110.0,0.17149676]
[1759071223506,8.39401808,110120.0,110110.0,0.17149676]
[1759071223731,8.39276808,110120.0,110110.0,0.17149676]
[1759071223932,8.39276808,110120.0,110110.0,0.16614676]
[1759071224250,8.57567813,110120.0,110110.0,0.16614676]
[1759071224457,8.95549553,110120.0,110110.0,0.06614676]
[1759071224919,8.98283034,110120.0,110110.0,0.06614676]
[1759071225097,8.98283034,110120.0,110110.0,0.16614676]
[1759071226042,8.99708162,110120.0,110110.0,0.02382]
[1759071226268,9.08579309,110120.0,110110.0,0.12382]
[1759071227068,8.79551309,110120.0,110110.0,0.12382]
[1759071227280,9.08567309,110120.0,110110.0,0.12382]
[1759071227488,9.08567309,110120.0,110110.0,0.02382]
[1759071227685,9.08567309,110120.0,110110.0,0.12382]
[1759071229415,9.07142181,110120.0,110110.0,0.12382]
[1759071231812,8.98235034,110120.0,110110.0,0.12382]
[1759071232427,8.99660157,110120.0,110110.0,0.12382]
[1759071232641,8.98235034,110120.0,110110.0,0.12382]
[1759071235550,8.98211034,110120.0,110110.0,0.12382]
[1759071236541,8.99636157,110120.0,110110.0,0.12382]
[1759071236710,8.98211034,110120.0,110110.0,0.12382]
[1759071237377,9.07082181,110120.0,110110.0,0.12382]
[1759071238139,9.07001181,110120.0,110110.0,0.12382]
[1759071240492,9.06973181,110120.0,110110.0,0.12382]
[1759071241414,9.08398301,110120.0,110110.0,0.12382]
[1759071241624,8.99523154,110120.0,110110.0,0.12382]
[1759071242443,8.99511154,110120.0,110110.0,0.12382]
[1759071242748,8.99511154,110120.0,110110.0,0.12584]
[1759071244081,8.52437149,110120.0,110110.0,0.12906]
[1759071244310,8.81349149,110120.0,110110.0,0.12906]
[1759071244668,8.99511154,110120.0,110110.0,0.12584]
[1759071244871,8.99495154,110120.0,110110.0,0.12584]
[1759071245477,8.70599154,110120.0,110110.0,0.12584]
[1759071245707,8.23693674,110120.0,110110.0,0.12906]
[1759071245900,8.99495154,110120.0,110110.0,0.12584]
[1759071246609,8.14407409,110120.0,110110.0,0.17138676]
[1759071246832,8.43303409,110120.0,110110.0,0.17138676]
[1759071247404,8.41946289,110120.0,110110.0,0.17138676]
[1759071248275,8.60237294,110120.0,110110.0,0.16614676]
[1759071248927,8.60237294,110120.0,110110.0,0.16816676]
[1759071249128,8.98138034,110120.0,110110.0,0.16816676]
[1759071249666,8.51012029,110120.0,110110.0,0.17138676]
[1759071249882,8.79835029,110120.0,110110.0,0.17138676]
[1759071250759,8.81260139,110120.0,110110.0,0.17138676]
[1759071252065,8.99422144,110120.0,110110.0,0.17138676]
[1759071253223,8.81244139,110120.0,110110.0,0.17138676]
[1759071253435,8.43343399,110120.0,110110.0,0.17138676]
[1759071254487,8.61505404,110120.0,110110.0,0.17138676]
[1759071255390,9.01541017,110120.0,110110.0,0.17138676]
[1759071256012,8.99535144,110120.0,110110.0,0.17138676]
[1759071256187,8.99535144,110120.0,110110.0,0.16614676]
[1759071257678,8.70599144,110120.0,110110.0,0.16614676]
[1759071258241,8.99511144,110120.0,110110.0,0.16614676]
[1759071261134,8.99592144,110120.0,110110.0,0.16614676]
[1759071262669,8.99511144,110120.0,110110.0,0.16614676]
[1759071264437,9.08463291,110120.0,110110.0,0.16614676]
[1759071265514,9.08463291,110120.0,110110.0,0.15740676]
[1759071265697,8.99592144,110120.0,110110.0,0.15740676]
[1759071265908,8.99592144,110120.0,110110.0,0.05740676]
[1759071266174,8.99592144,110120.0,110110.0,0.15740676]
[1759071267761,8.98167034,110120.0,110110.0,0.15740676]
[1759071268181,8.98167034,110120.0,110110.0,0.05740676]
[1759071268388,9.10053371,110120.0,110110.0,0.01508]
[1759071269920,9.09953371,110120.0,110110.0,0.01508]
[1759071270128,9.10153371,110120.0,110110.0,0.01508]
[1759071270739,8.81941371,110120.0,110110.0,0.01508]
[1759071270946,9.1223464,110120.0,110110.0,0.01508]
[1759071271373,8.8336664,110120.0,110110.0,0.01508]
[1759071271573,9.2169464,110120.0,110110.0,0.01508]
[1759071272836,9.1222264,110120.0,110110.0,0.01508]
[1759071273043,9.2169064,110120.0,110110.0,0.01508]
[1759071273979,8.8336664,110120.0,110110.0,0.01508]
[1759071274189,9.2168664,110120.0,110110.0,0.01508]
[1759071274415,8.8336664,110120.0,110110.0,0.01508]
[1759071274624,9.2168264,110120.0,110110.0,0.01508]
[1759071274768,8.8336664,110120.0,110110.0,0.01508]
[1759071274975,9.2167864,110120.0,110110.0,0.01508]
[1759071275260,9.1220664,110120.0,110110.0,0.01508]
[1759071275389,9.2159364,110120.0,110110.0,0.01508]
[1759071275592,9.2159364,110120.0,110110.0,0.02016]
[1759071275593,8.36792013,110120.0,110110.0,0.02016]
[1759071275817,8.74285493,110120.0,110110.0,0.02016]
[1759071276385,9.41048317,110120.0,110110.0,0.02016]
[1759071276617,9.12204317,110120.0,110110.0,0.02016]
[1759071276820,9.41048317,110120.0,110110.0,0.02016]
[1759071277612,9.49919464,110120.0,110110.0,0.02016]
[1759071277856,9.48494195,110120.0,110110.0,0.02016]
[1759071278485,10.62214499,110120.0,110110.0,0.02016]
[1759071280390,9.48478195,110120.0,110110.0,0.02016]
[1759071281000,9.49903398,110120.0,110110.0,0.02016]
[1759071281414,9.21075398,110120.0,110110.0,0.02016]
[1759071281686,9.49899398,110120.0,110110.0,0.02016]
[1759071282836,9.41028251,110120.0,110110.0,0.02016]
[1759071283800,9.09189061,110120.0,110110.0,0.02016]
[1759071283996,9.38005061,110120.0,110110.0,0.02016]
[1759071284595,9.38001061,110120.0,110110.0,0.02016]
[1759071287750,9.36575858,110120.0,110110.0,0.02016]
[1759071288198,9.45447005,110120.0,110110.0,0.02016]